[Event "EYCC Open-U16 2019"]
[Site "Bratislava"]
[Date "2019.08.04"]
[Round "3.6"]
[White "Sargsyan, Tigran R."]
[Black "Turcan, Richard"]
[Result "1-0"]
[ECO "D83"]
[WhiteElo "2314"]
[BlackElo "2232"]
[Annotator "NA"]
[PlyCount "61"]
[EventDate "2019.08.02"]
[EventType "swiss"]
[EventCountry "SVK"]
[SourceTitle "playchess.com"]
[Source "ChessBase"]
[SourceQuality "1"]
[TimeControl "40/5400+30:1800+30"]

1. d4 {[%emt 0:00:00]} Nf6 {[%emt 0:00:00]} 2. c4 {[%emt 0:00:26]} g6 {[%emt 0:01:08]} 3. Nc3 {[%emt 0:00:15]} d5 {[%emt 0:01:04]} 4. Bf4 {[%emt 0:00:56]} Bg7 {[%emt 0:00:43]} 5. e3 {[%emt 0:00:06]} O-O {[%emt 0:02:25]} 6. Rc1 {[%emt 0:00:31]} Be6 {[%emt 0:04:46]} 7. c5 {[%emt 0:02:42]} c6 {[%emt 0:08:40]} 8. Nf3 {[%emt 0:03:28]} Bc8 {[%emt 0:09:45]} 9. h3 {[%emt 0:09:21]} Nbd7 {[%emt 0:07:15]} 10. Be2 {[%emt 0:03:05]} Ne4 {[%emt 0:14:13]} 11. Nxe4 {[%emt 0:15:35]} dxe4 {[%emt 0:00:07]} 12. Ng5 {[%emt 0:07:50]} Nf6 {[%emt 0:06:18]} 13. Be5 {[%emt 0:03:13]} Bf5 {[%emt 0:13:24]} 14. g4 {[%emt 0:02:17]} h6 {[%emt 0:01:30]} 15. gxf5 {[%emt 0:06:59]} hxg5 {[%emt 0:00:42]} 16. fxg6 {[%emt 0:00:22]} fxg6 {[%emt 0:00:49]} 17. Bxf6 {[%emt 0:12:50]} Rxf6 {[%emt 0:03:45]} 18. Bc4+ {[%emt 0:01:15]} Kh7 {[%emt 0:01:05]} 19. h4 {[%emt 0:06:10]} g4 {[%emt 0:03:00]} 20. Qxg4 {[%emt 0:00:57]} Qa5+ {[%emt 0:01:37]} 21. Rc3 {[%emt 0:00:51]} Qb4 {[%emt 0:03:49]} 22. h5 {[%emt 0:02:29]} g5 {[%emt 0:02:46]} 23. h6 {[%emt 0:02:22]} Bf8 {[%emt 0:03:23]} 24. Qxe4+ {[%emt 0:01:32]} Kh8 {[%emt 0:00:07]} 25. Bd3 {[%emt 0:01:41]} Rf7 {[%emt 0:00:08]} 26. Qg6 {[%emt 0:00:33]} Qxb2 {[%emt 0:00:14]} 27. Qxf7 {[%emt 0:00:14]} Qxc3+ {[%emt 0:00:05]} 28. Ke2 {[%emt 0:00:04]} Qb2+ {[%emt 0:00:13]} 29. Kf3 {[%emt 0:00:12]} g4+ {[%emt 0:00:07]} 30. Kg2 {[%emt 0:00:13]} Bxh6 {[%emt 0:00:14]} 31. Qh7# 1-0

[Event "EYCC Open-U16 2019"]
[Site "Bratislava"]
[Date "2019.08.04"]
[Round "3.7"]
[White "Malovanyi, Yulian"]
[Black "Barseghyan, Armen Ar."]
[Result "0-1"]
[ECO "B31"]
[WhiteElo "2204"]
[BlackElo "2313"]
[Annotator "NA"]
[PlyCount "96"]
[EventDate "2019.08.02"]
[EventType "swiss"]
[EventCountry "SVK"]
[SourceTitle "playchess.com"]
[Source "ChessBase"]
[SourceQuality "1"]
[TimeControl "40/5400+30:1800+30"]

1. e4 {[%emt 0:00:00]} c5 {[%emt 0:00:29]} 2. Nf3 {[%emt 0:00:00]} Nc6 {[%emt 0:00:36]} 3. Bb5 {[%emt 0:00:17]} g6 {[%emt 0:00:07]} 4. Bxc6 {[%emt 0:00:07]} dxc6 {[%emt 0:00:04]} 5. h3 {[%emt 0:00:08]} Bg7 {[%emt 0:00:06]} 6. d3 {[%emt 0:00:07]} Nf6 {[%emt 0:00:36]} 7. Nc3 {[%emt 0:00:19]} Nd7 {[%emt 0:00:33]} 8. Be3 {[%emt 0:00:25]} e5 {[%emt 0:00:32]} 9. Qd2 {[%emt 0:00:19]} h6 {[%emt 0:03:32]} 10. O-O {[%emt 0:00:22]} b6 {[%emt 0:00:08]} 11. Nh2 {[%emt 0:00:51]} Nf8 {[%emt 0:00:34]} 12. f4 {[%emt 0:00:36]} exf4 {[%emt 0:00:04]} 13. Bxf4 {[%emt 0:00:15]} Ne6 {[%emt 0:00:08]} 14. Bg3 {[%emt 0:07:43]} Qg5 {[%emt 0:00:13]} 15. Qe1 {[%emt 0:01:16]} Nd4 {[%emt 0:00:13]} 16. Qf2 {[%emt 0:01:10]} O-O {[%emt 0:00:15]} 17. Bf4 {[%emt 0:10:42]} Qd8 {[%emt 0:01:56]} 18. Rae1 {[%emt 0:18:49]} f5 {[%emt 0:01:56]} 19. exf5 {[%emt 0:03:01]} Bxf5 {[%emt 0:00:40]} 20. Qd2 {[%emt 0:03:57]} Qh4 {[%emt 0:09:39]} 21. Nf3 {[%emt 0:11:57]} Nxf3+ {[%emt 0:00:36]} 22. Rxf3 {[%emt 0:00:07]} Rae8 {[%emt 0:01:41]} 23. Rxe8 {[%emt 0:08:51]} Rxe8 {[%emt 0:00:34]} 24. Kh2 {[%emt 0:00:09]} h5 {[%emt 0:10:18]} 25. Rf2 {[%emt 0:05:33]} Kh7 {[%emt 0:10:49]} 26. Nd1 {[%emt 0:05:52]} Bd4 {[%emt 0:06:28]} 27. Rf1 {[%emt 0:05:29]} Qe7 {[%emt 0:03:10]} 28. c3 {[%emt 0:02:39]} Be5 {[%emt 0:00:19]} 29. d4 {[%emt 0:05:01]} cxd4 {[%emt 0:03:52]} 30. cxd4 {[%emt 0:00:06]} Bg7 {[%emt 0:11:03]} 31. Ne3 {[%emt 0:04:27]} Qe4 {[%emt 0:01:14]} 32. Nxf5 {[%emt 0:02:08]} Qxf5 {[%emt 0:02:49]} 33. Rf2 {[%emt 0:01:02]} Qd5 {[%emt 0:02:02]} 34. Re2 {[%emt 0:02:41]} Rxe2 {[%emt 0:00:25]} 35. Qxe2 {[%emt 0:00:06]} Qxd4 {[%emt 0:00:04]} 36. Bc1 {[%emt 0:00:49]} Qd6+ {[%emt 0:00:34]} 37. Kh1 {[%emt 0:00:29]} Qc5 {[%emt 0:00:34]} 38. Be3 {[%emt 0:00:31]} Qe5 {[%emt 0:00:09]} 39. Qf3 {[%emt 0:00:34]} Qxb2 {[%emt 0:00:30]} 40. Qxc6 {[%emt 0:00:00]} Qa1+ {[%emt 0:00:00]} 41. Bg1 {[%emt 0:00:34]} Qxa2 {[%emt 0:00:52]} 42. Qd7 {[%emt 0:00:31]} Qa1 {[%emt 0:01:03]} 43. Kh2 {[%emt 0:00:35]} a5 {[%emt 0:02:54]} 44. Bxb6 {[%emt 0:01:21]} a4 {[%emt 0:00:03]} 45. g4 {[%emt 0:14:08]} Qb2+ {[%emt 0:00:33]} 46. Kh1 {[%emt 0:00:03]} Qxb6 {[%emt 0:00:37]} 47. gxh5 {[%emt 0:00:03]} Qb1+ {[%emt 0:00:44]} 48. Kg2 {[%emt 0:00:07]} Qe4+ {[%emt 0:00:09]} 0-1

[Event "EYCC Open-U16 2019"]
[Site "Bratislava"]
[Date "2019.08.04"]
[Round "3.8"]
[White "Fecker, Noah"]
[Black "Timoshin, Andrei"]
[Result "0-1"]
[ECO "B31"]
[WhiteElo "2313"]
[BlackElo "2154"]
[Annotator "NA"]
[PlyCount "152"]
[EventDate "2019.08.02"]
[EventType "swiss"]
[EventCountry "SVK"]
[SourceTitle "playchess.com"]
[Source "ChessBase"]
[SourceQuality "1"]
[TimeControl "40/5400+30:1800+30"]

1. e4 {[%emt 0:00:00]} c5 {[%emt 0:00:00]} 2. Nf3 {[%emt 0:00:00]} Nc6 {[%emt 0:00:00]} 3. Bb5 {[%emt 0:02:25]} g6 {[%emt 0:00:02]} 4. c3 {[%emt 0:01:57]} Bg7 {[%emt 0:11:43]} 5. d4 {[%emt 0:01:42]} cxd4 {[%emt 0:00:10]} 6. cxd4 {[%emt 0:00:18]} Nf6 {[%emt 0:00:16]} 7. Nc3 {[%emt 0:08:14]} d5 {[%emt 0:03:26]} 8. Ne5 {[%emt 0:03:57]} Bd7 {[%emt 0:14:34]} 9. Nxd7 {[%emt 0:07:49]} Nxd7 {[%emt 0:05:54]} 10. e5 {[%emt 0:09:39]} a6 {[%emt 0:04:40]} 11. Be2 {[%emt 0:02:03]} e6 {[%emt 0:13:07]} 12. Rb1 {[%emt 0:19:42]} Qh4 {[%emt 0:04:59]} 13. Be3 {[%emt 0:06:11]} O-O {[%emt 0:09:23]} 14. g3 {[%emt 0:03:25]} Qe7 {[%emt 0:02:32]} 15. f4 {[%emt 0:02:51]} f6 {[%emt 0:01:36]} 16. exf6 {[%emt 0:02:21]} Bxf6 {[%emt 0:00:22]} 17. Bg4 {[%emt 0:01:57]} Rfe8 {[%emt 0:06:29]} 18. O-O {[%emt 0:01:18]} Qg7 {[%emt 0:00:10]} 19. Ne2 {[%emt 0:05:02]} Nb6 {[%emt 0:00:29]} 20. b3 {[%emt 0:02:11]} Nc8 {[%emt 0:00:09]} 21. Qd3 {[%emt 0:03:11]} Nd6 {[%emt 0:00:48]} 22. Rfd1 {[%emt 0:01:44]} Rac8 {[%emt 0:02:09]} 23. a3 {[%emt 0:00:45]} Rc7 {[%emt 0:08:22]} 24. Kg2 {[%emt 0:02:09]} Nf5 {[%emt 0:01:50]} 25. Bf2 {[%emt 0:01:05]} Qe7 {[%emt 0:00:57]} 26. b4 {[%emt 0:01:19]} b5 {[%emt 0:00:17]} 27. Rbc1 {[%emt 0:02:18]} Rec8 {[%emt 0:00:30]} 28. Rc5 {[%emt 0:01:48]} Nd6 {[%emt 0:01:10]} 29. Nc3 {[%emt 0:00:26]} Qf7 {[%emt 0:05:16]} 30. Re1 {[%emt 0:00:45]} Nd8 {[%emt 0:02:51]} 31. Rc1 {[%emt 0:01:47]} N8b7 {[%emt 0:00:42]} 32. Rxc7 {[%emt 0:02:38]} Rxc7 {[%emt 0:00:03]} 33. Re1 {[%emt 0:00:08]} Nf5 {[%emt 0:00:36]} 34. Bf3 {[%emt 0:01:00]} Kf8 {[%emt 0:00:53]} 35. g4 {[%emt 0:00:40]} Nh4+ {[%emt 0:00:30]} 36. Bxh4 {[%emt 0:00:15]} Bxh4 {[%emt 0:00:01]} 37. Rf1 {[%emt 0:00:09]} Bf6 {[%emt 0:00:51]} 38. f5 {[%emt 0:00:30]} gxf5 {[%emt 0:00:15]} 39. gxf5 {[%emt 0:00:13]} Qg7+ {[%emt 0:00:50]} 40. Kh1 {[%emt 0:00:00]} Bxd4 {[%emt 0:00:00]} 41. Ne2 {[%emt 0:07:03]} Be5 {[%emt 0:04:56]} 42. fxe6 {[%emt 0:03:35]} Ke7 {[%emt 0:02:15]} 43. Bxd5 {[%emt 0:03:39]} Nd6 {[%emt 0:02:59]} 44. Qe3 {[%emt 0:04:13]} Kd8 {[%emt 0:08:56]} 45. Rg1 {[%emt 0:11:19]} Qf6 {[%emt 0:00:58]} 46. Qb6 {[%emt 0:01:28]} Nf5 {[%emt 0:09:13]} 47. Bc6 {[%emt 0:03:47]} Qxe6 {[%emt 0:02:09]} 48. Qb8+ {[%emt 0:01:41]} Rc8 {[%emt 0:00:20]} 49. Qb6+ {[%emt 0:00:47]} Ke7 {[%emt 0:01:07]} 50. Qc5+ {[%emt 0:00:44]} Kf6 {[%emt 0:00:15]} 51. Bd5 {[%emt 0:00:44]} Rxc5 {[%emt 0:01:14]} 52. Bxe6 {[%emt 0:00:01]} Rc2 {[%emt 0:00:24]} 53. Bxf5 {[%emt 0:00:40]} Kxf5 {[%emt 0:00:02]} 54. Ng3+ {[%emt 0:00:24]} Kf4 {[%emt 0:02:18]} 55. Rf1+ {[%emt 0:00:54]} Kg4 {[%emt 0:00:04]} 56. Rf7 {[%emt 0:00:22]} h5 {[%emt 0:00:23]} 57. Nf1 {[%emt 0:00:18]} Rc3 {[%emt 0:01:27]} 58. Re7 {[%emt 0:00:23]} Bf4 {[%emt 0:00:29]} 59. Rg7+ {[%emt 0:00:57]} Kf3 {[%emt 0:00:05]} 60. Rf7 {[%emt 0:00:30]} Rxa3 {[%emt 0:00:47]} 61. Nd2+ {[%emt 0:00:11]} Ke3 {[%emt 0:00:24]} 62. Nf1+ {[%emt 0:00:17]} Ke4 {[%emt 0:00:02]} 63. Kg2 {[%emt 0:00:15]} Ra2+ {[%emt 0:00:31]} 64. Kh3 {[%emt 0:00:06]} Rf2 {[%emt 0:00:09]} 65. Re7+ {[%emt 0:00:52]} Kf3 {[%emt 0:00:14]} 66. Ng3 {[%emt 0:00:37]} h4 {[%emt 0:00:08]} 67. Rf7 {[%emt 0:00:22]} hxg3 {[%emt 0:01:36]} 68. hxg3 {[%emt 0:00:06]} Ke3 {[%emt 0:00:34]} 69. gxf4 {[%emt 0:01:48]} Rxf4 {[%emt 0:00:07]} 70. Ra7 {[%emt 0:00:14]} Kd3 {[%emt 0:00:29]} 71. Kg3 {[%emt 0:00:12]} Rxb4 {[%emt 0:00:28]} 72. Rxa6 {[%emt 0:00:02]} Re4 {[%emt 0:00:11]} 73. Kf3 {[%emt 0:00:17]} Re8 {[%emt 0:00:12]} 74. Rb6 {[%emt 0:00:21]} Rf8+ {[%emt 0:00:04]} 75. Kg2 {[%emt 0:00:06]} Kc4 {[%emt 0:00:09]} 76. Rc6+ {[%emt 0:00:01]} Kb3 {[%emt 0:00:09]} 0-1

[Event "EYCC Open-U16 2019"]
[Site "Bratislava"]
[Date "2019.08.04"]
[Round "3.9"]
[White "Stankovic, Milos M"]
[Black "Mis, Mieszko"]
[Result "0-1"]
[ECO "A45"]
[WhiteElo "2270"]
[BlackElo "2284"]
[Annotator "NA"]
[PlyCount "82"]
[EventDate "2019.08.02"]
[EventType "swiss"]
[EventCountry "SVK"]
[SourceTitle "playchess.com"]
[Source "ChessBase"]
[SourceQuality "1"]
[TimeControl "40/5400+30:1800+30"]

1. d4 {[%emt 0:00:00]} Nf6 {[%emt 0:00:00]} 2. Bg5 {[%emt 0:00:00]} e6 {[%emt 0:00:05]} 3. e4 {[%emt 0:00:00]} h6 {[%emt 0:00:07]} 4. Bxf6 {[%emt 0:00:00]} Qxf6 {[%emt 0:00:06]} 5. c3 {[%emt 0:00:00]} c5 {[%emt 0:00:39]} 6. Nf3 {[%emt 0:01:27]} cxd4 {[%emt 0:00:17]} 7. cxd4 {[%emt 0:00:39]} Bb4+ {[%emt 0:01:13]} 8. Nc3 {[%emt 0:09:36]} O-O {[%emt 0:09:54]} 9. Rc1 {[%emt 0:03:35]} d6 {[%emt 0:03:56]} 10. Be2 {[%emt 0:08:45]} e5 {[%emt 0:07:18]} 11. O-O {[%emt 0:04:08]} Bxc3 {[%emt 0:00:28]} 12. Rxc3 {[%emt 0:00:15]} Bg4 {[%emt 0:05:00]} 13. d5 {[%emt 0:03:47]} Bxf3 {[%emt 0:06:15]} 14. Bxf3 {[%emt 0:00:58]} Nd7 {[%emt 0:01:22]} 15. b4 {[%emt 0:05:01]} Qd8 {[%emt 0:05:04]} 16. Qc2 {[%emt 0:02:37]} a5 {[%emt 0:06:17]} 17. a3 {[%emt 0:00:22]} axb4 {[%emt 0:03:10]} 18. axb4 {[%emt 0:00:03]} Qb6 {[%emt 0:00:06]} 19. Rb1 {[%emt 0:02:06]} Nf6 {[%emt 0:00:34]} 20. Be2 {[%emt 0:01:27]} Ra7 {[%emt 0:06:39]} 21. h3 {[%emt 0:01:58]} g6 {[%emt 0:03:08]} 22. g3 {[%emt 0:02:39]} Rfa8 {[%emt 0:01:30]} 23. Rc8+ {[%emt 0:14:24]} Rxc8 {[%emt 0:05:14]} 24. Qxc8+ {[%emt 0:00:23]} Kg7 {[%emt 0:00:03]} 25. Qc4 {[%emt 0:01:55]} Ra3 {[%emt 0:01:14]} 26. Kg2 {[%emt 0:00:36]} Qa7 {[%emt 0:07:41]} 27. Rb2 {[%emt 0:02:52]} b5 {[%emt 0:06:00]} 28. Qc2 {[%emt 0:07:06]} Qd4 {[%emt 0:00:51]} 29. f3 {[%emt 0:06:13]} Qe3 {[%emt 0:05:31]} 30. Qd2 {[%emt 0:01:11]} Qb6 {[%emt 0:00:55]} 31. Ra2 {[%emt 0:01:09]} Rxa2 32. Qxa2 {[%emt 0:00:06]} Nh5 {[%emt 0:06:54]} 33. Bf1 {[%emt 0:03:58]} Qd4 {[%emt 0:02:49]} 34. Bxb5 {[%emt 0:00:40]} Qxb4 {[%emt 0:00:16]} 35. Be2 {[%emt 0:00:28]} Qe1 {[%emt 0:00:21]} 36. h4 {[%emt 0:01:02]} Qxg3+ {[%emt 0:00:19]} 37. Kf1 {[%emt 0:00:06]} Qh2 {[%emt 0:00:34]} 38. Bc4 {[%emt 0:01:35]} Ng3+ {[%emt 0:00:11]} 39. Ke1 {[%emt 0:00:10]} Qg1+ {[%emt 0:00:22]} 40. Kd2 {[%emt 0:00:00]} Qf2+ {[%emt 0:00:00]} 41. Kc1 {[%emt 0:00:24]} Qxf3 {[%emt 0:00:14]} 0-1

[Event "EYCC Open-U16 2019"]
[Site "Bratislava"]
[Date "2019.08.04"]
[Round "3.10"]
[White "Mukhutdinov, Tigran"]
[Black "Minko, Dmitry"]
[Result "1-0"]
[ECO "C45"]
[WhiteElo "2328"]
[BlackElo "2061"]
[Annotator "NA"]
[PlyCount "79"]
[EventDate "2019.08.02"]
[EventType "swiss"]
[EventCountry "SVK"]
[SourceTitle "playchess.com"]
[Source "ChessBase"]
[SourceQuality "1"]
[TimeControl "40/5400+30:1800+30"]

1. e4 {[%emt 0:00:00]} e5 {[%emt 0:00:00]} 2. Nf3 {[%emt 0:00:00]} Nc6 {[%emt 0:00:00]} 3. d4 {[%emt 0:00:00]} exd4 {[%emt 0:00:00]} 4. Nxd4 {[%emt 0:00:06]} Bc5 {[%emt 0:00:06]} 5. Nxc6 {[%emt 0:00:39]} Qf6 {[%emt 0:01:21]} 6. Qf3 {[%emt 0:00:19]} Qxf3 {[%emt 0:00:23]} 7. gxf3 {[%emt 0:00:04]} bxc6 {[%emt 0:00:14]} 8. Be3 {[%emt 0:00:27]} Bb6 {[%emt 0:05:02]} 9. c4 {[%emt 0:00:22]} Bxe3 {[%emt 0:00:26]} 10. fxe3 {[%emt 0:00:05]} d6 {[%emt 0:04:07]} 11. Rg1 {[%emt 0:01:00]} Ne7 {[%emt 0:01:20]} 12. Nc3 {[%emt 0:01:02]} O-O {[%emt 0:03:16]} 13. c5 {[%emt 0:06:08]} d5 {[%emt 0:02:48]} 14. Rd1 {[%emt 0:09:51]} Be6 {[%emt 0:08:32]} 15. e5 {[%emt 0:06:10]} Ng6 {[%emt 0:13:39]} 16. f4 {[%emt 0:00:47]} Bf5 {[%emt 0:02:36]} 17. Rg5 {[%emt 0:04:18]} Nh4 {[%emt 0:07:32]} 18. Kf2 {[%emt 0:04:40]} f6 {[%emt 0:02:38]} 19. Rh5 {[%emt 0:08:13]} Bg4 {[%emt 0:04:21]} 20. Rxh4 {[%emt 0:01:04]} Bxd1 {[%emt 0:00:05]} 21. Nxd1 {[%emt 0:00:03]} fxe5 {[%emt 0:00:08]} 22. Bd3 {[%emt 0:08:07]} g6 {[%emt 0:03:50]} 23. Ke2 {[%emt 0:02:59]} Rae8 {[%emt 0:06:27]} 24. Kd2 {[%emt 0:02:55]} e4 {[%emt 0:07:03]} 25. Ba6 {[%emt 0:01:29]} h5 {[%emt 0:06:43]} 26. Nc3 {[%emt 0:01:48]} Kg7 {[%emt 0:00:51]} 27. Rh3 {[%emt 0:06:32]} Kh6 {[%emt 0:07:16]} 28. Rg3 {[%emt 0:02:40]} d4 {[%emt 0:00:37]} 29. exd4 {[%emt 0:01:04]} Rxf4 {[%emt 0:00:06]} 30. Ke3 {[%emt 0:00:15]} Rh4 {[%emt 0:00:13]} 31. h3 {[%emt 0:01:00]} g5 {[%emt 0:01:08]} 32. b4 {[%emt 0:05:13]} Rf4 {[%emt 0:00:48]} 33. Be2 {[%emt 0:00:32]} Rb8 {[%emt 0:05:54]} 34. Nxe4 {[%emt 0:08:36]} Rxb4 {[%emt 0:01:24]} 35. Nxg5 {[%emt 0:01:13]} Rbxd4 {[%emt 0:00:40]} 36. Nf7+ {[%emt 0:00:41]} Kh7 {[%emt 0:00:40]} 37. Bd3+ {[%emt 0:00:23]} Rxd3+ {[%emt 0:00:12]} 38. Kxf4 {[%emt 0:00:04]} Rd2 {[%emt 0:00:18]} 39. a3 {[%emt 0:00:35]} Rc2 {[%emt 0:00:07]} 40. Ng5+ {[%emt 0:00:00]} 1-0

[Event "EYCC Open-U16 2019"]
[Site "Bratislava"]
[Date "2019.08.04"]
[Round "3.11"]
[White "Kacharava, Nikolozi"]
[Black "Cohen Revivo, Shoham"]
[Result "1-0"]
[ECO "C07"]
[WhiteElo "2431"]
[BlackElo "2254"]
[Annotator "NA"]
[PlyCount "111"]
[EventDate "2019.08.02"]
[EventType "swiss"]
[EventCountry "SVK"]
[SourceTitle "playchess.com"]
[Source "ChessBase"]
[SourceQuality "1"]
[TimeControl "40/5400+30:1800+30"]

1. e4 {[%emt 0:00:00]} e6 {[%emt 0:00:52]} 2. d4 {[%emt 0:00:12]} d5 {[%emt 0:00:20]} 3. Nd2 {[%emt 0:00:36]} c5 {[%emt 0:00:29]} 4. exd5 {[%emt 0:00:23]} Qxd5 {[%emt 0:00:10]} 5. Ngf3 {[%emt 0:00:34]} cxd4 {[%emt 0:00:34]} 6. Bc4 {[%emt 0:00:21]} Qd7 {[%emt 0:00:35]} 7. O-O {[%emt 0:01:01]} Nc6 {[%emt 0:00:41]} 8. Nb3 {[%emt 0:00:42]} Nf6 {[%emt 0:00:17]} 9. Nbxd4 {[%emt 0:01:25]} a6 {[%emt 0:00:38]} 10. Re1 {[%emt 0:02:35]} Nxd4 {[%emt 0:01:03]} 11. Nxd4 {[%emt 0:00:45]} Bc5 {[%emt 0:01:04]} 12. c3 {[%emt 0:01:27]} b5 {[%emt 0:00:33]} 13. Bb3 {[%emt 0:02:08]} Bb7 {[%emt 0:00:55]} 14. Bg5 {[%emt 0:08:52]} Ne4 {[%emt 0:01:06]} 15. Bf4 {[%emt 0:05:11]} O-O {[%emt 0:09:20]} 16. Bc2 {[%emt 0:10:18]} Nf6 {[%emt 0:03:34]} 17. Be5 {[%emt 0:02:29]} Qd5 {[%emt 0:02:10]} 18. f3 {[%emt 0:04:04]} Ng4 {[%emt 0:11:18]} 19. Bg3 {[%emt 0:11:53]} Bxd4+ {[%emt 0:04:47]} 20. cxd4 {[%emt 0:00:45]} Nf6 {[%emt 0:01:56]} 21. Be5 {[%emt 0:03:22]} Rac8 {[%emt 0:01:18]} 22. Qd2 {[%emt 0:05:07]} Rfd8 {[%emt 0:02:04]} 23. b3 {[%emt 0:05:47]} Ne8 {[%emt 0:09:51]} 24. Rad1 {[%emt 0:04:34]} f6 {[%emt 0:04:00]} 25. Bg3 {[%emt 0:03:06]} Qd7 {[%emt 0:05:05]} 26. Bb1 {[%emt 0:02:07]} Nd6 {[%emt 0:02:32]} 27. Qd3 {[%emt 0:05:31]} g6 {[%emt 0:00:52]} 28. Bf2 {[%emt 0:02:23]} Bd5 {[%emt 0:00:33]} 29. h4 {[%emt 0:00:45]} Qc7 {[%emt 0:05:40]} 30. Qd2 {[%emt 0:01:44]} Nf5 {[%emt 0:06:13]} 31. Rc1 {[%emt 0:01:40]} Qd6 {[%emt 0:00:38]} 32. Rc5 {[%emt 0:01:23]} Kg7 {[%emt 0:02:12]} 33. Rec1 {[%emt 0:01:05]} Ne7 {[%emt 0:05:39]} 34. Bd3 {[%emt 0:04:17]} Rxc5 {[%emt 0:04:13]} 35. dxc5 {[%emt 0:01:06]} Qc7 {[%emt 0:00:05]} 36. Qc2 {[%emt 0:02:43]} Nc6 {[%emt 0:00:25]} 37. Bf1 {[%emt 0:00:29]} Qf4 {[%emt 0:01:55]} 38. Rd1 {[%emt 0:01:06]} Kf7 {[%emt 0:10:15]} 39. Qc3 {[%emt 0:01:34]} Qe5 {[%emt 0:02:12]} 40. Qc1 {[%emt 0:00:00]} Kg7 {[%emt 0:00:00]} 41. Qa3 {[%emt 0:05:07]} Qc3 {[%emt 0:11:50]} 42. Qxa6 {[%emt 0:06:04]} Ne5 {[%emt 0:02:51]} 43. Qxb5 {[%emt 0:08:03]} Nxf3+ {[%emt 0:01:39]} 44. gxf3 {[%emt 0:02:04]} Qxf3 {[%emt 0:00:10]} 45. Rxd5 {[%emt 0:00:19]} Qg4+ {[%emt 0:00:49]} 46. Kh2 {[%emt 0:03:38]} Rxd5 {[%emt 0:00:38]} 47. Bg2 {[%emt 0:01:01]} Rf5 {[%emt 0:04:41]} 48. Qd7+ {[%emt 0:02:59]} Kh6 {[%emt 0:00:06]} 49. Qd2+ {[%emt 0:02:24]} g5 {[%emt 0:01:19]} 50. Bh3 {[%emt 0:00:27]} Qf4+ {[%emt 0:01:29]} 51. Qxf4 {[%emt 0:00:07]} Rxf4 {[%emt 0:00:11]} 52. Kg3 {[%emt 0:01:45]} Re4 {[%emt 0:01:34]} 53. c6 {[%emt 0:00:34]} Re2 {[%emt 0:00:04]} 54. hxg5+ {[%emt 0:00:48]} Kxg5 {[%emt 0:00:14]} 55. Bf1 {[%emt 0:00:44]} Rc2 {[%emt 0:00:54]} 56. Bc4 {[%emt 0:00:14]} 1-0

[Event "EYCC Open-U16 2019"]
[Site "Bratislava"]
[Date "2019.08.04"]
[Round "3.12"]
[White "Ceres, Dragos"]
[Black "Subelj, Jan"]
[Result "1/2-1/2"]
[ECO "C50"]
[WhiteElo "2266"]
[BlackElo "2425"]
[Annotator "NA"]
[PlyCount "80"]
[EventDate "2019.08.02"]
[EventType "swiss"]
[EventCountry "SVK"]
[SourceTitle "playchess.com"]
[Source "ChessBase"]
[SourceQuality "1"]
[TimeControl "40/5400+30:1800+30"]

1. e4 {[%emt 0:00:00]} e5 {[%emt 0:00:01]} 2. Nf3 {[%emt 0:00:00]} Nc6 {[%emt 0:00:36]} 3. Bc4 {[%emt 0:00:00]} Bc5 {[%emt 0:00:44]} 4. O-O {[%emt 0:00:00]} Nf6 {[%emt 0:01:05]} 5. d3 {[%emt 0:00:01]} d6 {[%emt 0:01:28]} 6. c3 {[%emt 0:00:14]} h6 {[%emt 0:05:36]} 7. Nbd2 {[%emt 0:07:51]} a5 {[%emt 0:03:08]} 8. Re1 {[%emt 0:06:06]} O-O {[%emt 0:03:33]} 9. Nf1 {[%emt 0:05:01]} Be6 {[%emt 0:09:47]} 10. Bb5 {[%emt 0:01:09]} Ba7 {[%emt 0:02:15]} 11. Ng3 {[%emt 0:12:56]} Ne7 {[%emt 0:02:38]} 12. d4 {[%emt 0:00:17]} Ng6 {[%emt 0:00:47]} 13. h3 c6 {[%emt 0:26:17]} 14. Bf1 {[%emt 0:01:00]} Qc7 {[%emt 0:06:04]} 15. Be3 {[%emt 0:02:03]} Rad8 {[%emt 0:10:13]} 16. Qc2 {[%emt 0:02:06]} exd4 {[%emt 0:00:08]} 17. cxd4 {[%emt 0:25:50]} d5 {[%emt 0:01:16]} 18. e5 {[%emt 0:00:46]} Ne4 {[%emt 0:00:22]} 19. Bd3 {[%emt 0:06:29]} Nxg3 {[%emt 0:00:19]} 20. fxg3 {[%emt 0:00:03]} Ne7 {[%emt 0:00:16]} 21. g4 {[%emt 0:01:35]} c5 {[%emt 0:16:11]} 22. Qd2 {[%emt 0:09:45]} c4 {[%emt 0:03:00]} 23. Bc2 {[%emt 0:03:40]} Nc6 {[%emt 0:01:08]} 24. Rad1 {[%emt 0:01:17]} f6 {[%emt 0:01:11]} 25. exf6 {[%emt 0:10:22]} Rxf6 {[%emt 0:00:03]} 26. Bb1 Rdf8 {[%emt 0:00:38]} 27. Qc2 {[%emt 0:01:11]} g5 {[%emt 0:00:12]} 28. Rf1 {[%emt 0:00:45]} Qg7 {[%emt 0:01:11]} 29. Qd2 {[%emt 0:01:13]} Bf7 {[%emt 0:01:04]} 30. h4 {[%emt 0:02:37]} gxh4 {[%emt 0:02:17]} 31. Nxh4 {[%emt 0:00:30]} Rxf1+ {[%emt 0:01:05]} 32. Rxf1 {[%emt 0:00:02]} Be6 {[%emt 0:00:53]} 33. Rxf8+ {[%emt 0:00:27]} Qxf8 {[%emt 0:00:03]} 34. Nf5 {[%emt 0:00:21]} Bxf5 {[%emt 0:00:14]} 35. Bxf5 {[%emt 0:00:27]} Qf6 {[%emt 0:00:01]} 36. Qf2 {[%emt 0:01:16]} Kg7 {[%emt 0:00:43]} 37. Bc8 {[%emt 0:00:37]} Qxf2+ {[%emt 0:01:11]} 38. Kxf2 {[%emt 0:00:05]} b5 {[%emt 0:00:13]} 39. Bb7 {[%emt 0:00:17]} Nb4 {[%emt 0:00:48]} 40. Ke2 {[%emt 0:00:00]} Nc2 {[%emt 0:00:00]} 1/2-1/2